Cogmind - Beta 14 @@@ ROGUE MODE // 2024.08.11 @ 13:31:22 Player: s0lid Result: Destroyed by G-47 Trooper with Particle Gun Performance ------------- Evolutions (2) 1000 Regions Visited (4) 800 Robots Destroyed (46) 230 Value Destroyed (2102) 2102 Prototype IDs (0) 0 Alien Tech Used (0) 0 Bonus (636) 636 TOTAL SCORE: 4768 Bonus ------- High Alert Combat Kills 230 Follower Combat Kills 206 Entered Garrisons 200 Cogmind --------- Core Integrity 0/550 Matter 254/300 Energy 60/100 System Corruption 0% Temperature Cool (9) Movement Walking (180) Ox1 Location -8/Garrison Parts ------- > --- POWER (1) -------- (None) > --- PROPULSION (2) --- VSS Leg > --- UTILITY (6) ------ Large Storage Unit Terrain Scan Processor Improved Salvage Targeting Computer > --- WEAPON (2) ------- (None) > --- INVENTORY (15) --- Surge Thruster Authchip [R/Combat] Authchip [R/Combat] Authchip [R/Combat] Relay Coupler [NC] (31) Relay Coupler [Swarmer] (41) Relay Coupler [Grunt] (28) Relay Coupler [Grunt] (24) Relay Coupler [Brawler] (21) Relay Coupler [Duelist] (26) Relay Coupler [Sentry] (17) Relay Coupler [Hunter] (14) Mining Claw Peak State ------------ > --- POWER ------------ Light Angular Momentum Engine > --- PROPULSION ------- Improved Carbon-fiber Leg Improved Carbon-fiber Leg > --- UTILITY ---------- Large Storage Unit Improved Terrain Scanner Terrain Scan Processor Improved Salvage Targeting Computer Improved Salvage Targeting Computer Improved Light Armor Plating > --- WEAPON ----------- Field Laser Gauss Cannon > --- INVENTORY -------- Carbon-fiber Leg Improved Carbon-fiber Leg Improved Carbon-fiber Leg Compact Wheel Compact Wheel Seismic Detector Improved Salvage Targeting Computer ECM Suite Light Armor Plating High-powered Tractor Beam Assault Rifle Heavy Assault Rifle Gauss Cannon Grenade Launcher Mining Claw [Rating: 40] Favorites ----------- Power Light Ion Engine Engine Light Ion Engine Power Core Light Nuclear Core Propulsion Improved Carbon-fiber Leg Leg Improved Carbon-fiber Leg Wheel Compact Wheel Flight Unit Surge Thruster Utility Large Storage Unit Device Improved Terrain Scanner Storage Large Storage Unit Processor Terrain Scan Processor Hackware System Shield Protection Improved Light Armor Plating Weapon Minigun Energy Gun EM Pulse Gun Ballistic Gun Minigun Ballistic Cannon Gauss Cannon Launcher Grenade Launcher Slashing Weapon Mining Claw Build | -11 -10 -9 -8 -8 ------- Run | Yrd Mat Mat Mat Gar Slots Evolved 4 | . . 2 2 . Power . | . . . . . Propulsion . | . . . . . Utility 4 | . . 2 2 . Weapon . | . . . . . Parts Attached 73 | 7 2 9 22 33 Power 9 | 1 . . 2 6 Engine 7 | 1 . . 2 4 Core 2 | . . . . 2 Reactor . | . . . . . Propulsion 18 | 2 . 3 5 8 Treads . | . . . . . Leg 12 | 1 . . 4 7 Wheel 5 | 1 . 3 1 . Hover . | . . . . . Flight 1 | . . . . 1 Utility 20 | 2 1 4 5 8 Device 7 | 1 1 1 . 4 Storage 2 | 1 . 1 . . Processor 7 | . . 1 4 2 Hackware 1 | . . . . 1 Protection 3 | . . 1 1 1 Artifact . | . . . . . Weapon 26 | 2 1 2 10 11 Energy Gun 6 | 1 . 1 3 1 Energy Cannon . | . . . . . Ballistic Gun 11 | 1 1 1 2 6 Ballistic Cannon 5 | . . . 3 2 Launcher 2 | . . . . 2 Special Weapon . | . . . . . Impact Weapon . | . . . . . Slashing Weapon 2 | . . . 2 . Piercing Weapon . | . . . . . Special Melee Weapon . | . . . . . Unidentified Prototypes . | . . . . . Parts Lost 29 | . . . 9 20 Power 6 | . . . 2 4 Propulsion 8 | . . . 3 5 Utility 7 | . . . 1 6 Weapon 8 | . . . 3 5 Highest Loss Streak 8 | . . . 7 8 To Critical Strikes . | . . . . . Average Slot Usage (%) 93 | . 100 96 97 91 Engine 6 | . 14 11 8 4 Core 1 | . . . . 3 Leg 14 | . 14 3 16 17 Wheel 4 | . 14 18 . . Device 12 | . 20 22 10 9 Storage 9 | . 7 10 9 9 Processor 20 | . . 2 24 27 Hackware 2 | . . . . 4 Protection 2 | . . 5 8 . Energy Gun 5 | . 14 11 8 1 Ballistic Gun 8 | . 14 11 4 7 Ballistic Cannon 1 | . . . 3 . Launcher 2 | . . . . 5 Peak Build Rating 40 | 9 9 15 40 31 Average Rating 23 | 5 9 11 32 26 On Entrance 10 | . 9 9 15 18 Naked Turns . | . . . . . Heaviest Build 43 | 12 12 32 43 36 Greatest Support 36 | 16 16 32 36 33 Greatest Overweight (x) 2 | . . 1 2 2 Average Overweight (x) . | . . . . . Largest Inventory Capacity 15 | 8 8 15 15 15 Average Capacity 14 | 7 6 14 15 15 Most Carried 15 | 6 8 15 15 15 Average Carried 12 | 3 5 6 14 14 Final Capacity 15 | 8 5 15 15 15 Final Carried 15 | 6 5 15 12 13 Class Distribution -------------------- 60% | Mutant 39% | Scavenger-Mutant Dominant Class ---------------- Mutant | -10/Materials Mutant | -9/Materials Mutant | -8/Materials Scavenger-Mutant | -8/Garrison Resources | -11 -10 -9 -8 -8 ----------- Run | Yrd Mat Mat Mat Gar Matter Collected 1435 | 271 . 121 253 790 Remotely . | . . . . . Salvage Created 1267 | 51 . 205 289 722 Parts 100 | 8 . 11 19 62 Haulers Intercepted 1 | . . 1 . . Recyclers Shooed 1 | 1 . . . . Parts Field Recycled . | . . . . . Retrieved Matter . | . . . . . Parts Self-Destructed . | . . . . . Prevented . | . . . . . Kills | -11 -10 -9 -8 -8 ------- Run | Yrd Mat Mat Mat Gar Combat Hostiles Destroyed 43 | . . 3 7 33 Guns 23 | . . 3 4 16 Cannons 6 | . . . 3 3 AOE 14 | . . . . 14 Classes Destroyed 9 | 1 . 4 1 3 Tunneler 2 | 2 . . . . Hauler 1 | . . 1 . . Swarmer 19 | . . . 2 17 Cutter 2 | . . . . 2 Grunt 13 | . . 1 3 9 Brawler 1 | . . 1 . . Sentry 5 | . . 1 2 2 Hunter 2 | . . . . 2 Programmer 1 | . . . . 1 Best Kill Streak 7 | 2 . 2 3 7 Combat Bots Only 7 | . . 2 3 7 Max Kills in Single Turn 3 | 1 . 1 1 3 Gunslinging . | . . . . . Exploded 3 | . . . . 3 Melee . | . . . . . Uniques/NPCs Destroyed . | . . . . . Combat | -11 -10 -9 -8 -8 -------- Run | Yrd Mat Mat Mat Gar Hostile Shots Fired 287 | . . 16 81 190 Missed 73 | . . 7 12 54 Damage Taken 3368 | . . 112 1268 1988 Core 572 | . . 15 141 416 Absorbed by Shields . | . . . . . Core Remaining (%) 98 | 100 100 96 . . Volleys Fired 118 | 6 1 11 28 72 Largest 2 | 2 2 2 2 2 Hottest 107 | 60 60 79 107 73 Shots Fired 195 | 12 2 22 54 105 Gun 150 | 12 2 22 40 74 Cannon 28 | . . . 14 14 Launcher 17 | . . . . 17 Special . | . . . . . Kinetic 132 | 6 1 11 28 86 Thermal 29 | . . 1 26 2 Explosive 17 | . . . . 17 Electromagnetic 17 | 6 1 10 . . Robot Hit Streak 17 | 4 . 5 17 12 Robot Miss Streak 3 | 2 2 2 2 3 Penetration Max . | . . . . . Secondary Targets 2 | . . 1 . 1 Max Gunslinging Chain 1 | . . 1 . 1 Shots Hit Robots 126 | 6 . 14 41 65 Core Hits 82 | 3 . 8 12 59 Critical Kills 2 | . . . 1 1 Critical Parts Destroyed . | . . . . . Critical Strikes 7 | . . . 3 4 Burn 2 | . . . 1 1 Destroy 2 | . . . 1 1 Blast 3 | . . . 1 2 Melee Attacks 4 | . . . 4 . Impact . | . . . . . Slashing 4 | . . . 4 . Piercing . | . . . . . Sneak Attacks . | . . . . . Combat Hostiles . | . . . . . Follow-up Attacks . | . . . . . Damage Inflicted 3288 | 87 . 185 773 2243 Guns 1484 | 87 . 185 429 783 Cannons 572 | . . . 344 228 Explosions 1232 | . . . . 1232 Melee . | . . . . . Ramming . | . . . . . Kinetic 1610 | 33 . 94 489 994 Thermal 316 | . . 15 284 17 Explosive 1232 | . . . . 1232 Electromagnetic 130 | 54 . 76 . . Impact . | . . . . . Slashing . | . . . . . Piercing . | . . . . . Highest Corruption . | . . . . . Average Corruption . | . . . . . Corruption Purged . | . . . . . Corruption Blocked . | . . . . . Overload Shots . | . . . . . Overflow Damage 48 | . . . 8 40 Projectiles 33 | . . . 8 25 Explosions 15 | . . . . 15 Melee . | . . . . . Knockbacks 5 | . . . 4 1 Impact . | . . . . . Kinetic 5 | . . . 4 1 Secondary . | . . . . . Self-Inflicted Damage 155 | . . . . 155 Shots 10 | . . . . 10 Rammed . | . . . . . Targets Rammed . | . . . . . Kicked . | . . . . . Crushed . | . . . . . Highest Temperature 289 | 40 . 15 289 54 Average Temperature 43 | 18 . 6 78 12 Received Heat Transfer 1044 | . . 45 360 639 Siege Activations . | . . . . . Robots Corrupted . | . . . . . Combat Hostiles . | . . . . . Parts Fried . | . . . . . Impact Corruptions . | . . . . . Robots Melted . | . . . . . Combat Hostiles . | . . . . . Parts Melted 2 | . . . 2 . Heat Transferred 888 | . . 37 740 111 Parts Sabotaged . | . . . . . Parts Stolen . | . . . . . Parts Stripped . | . . . . . Power Chain Reactions . | . . . . . Alert | -11 -10 -9 -8 -8 ------- Run | Yrd Mat Mat Mat Gar Peak Influence 1165 | 10 70 124 173 1165 Initial 29 | . 6 29 28 . Average 439 | 3 34 76 74 744 Maximum Alert Level 4 | . . . . 4 Low Security (%) 49 | 100 100 100 100 9 Level 1 4 | . . . . 7 Level 2 18 | . . . . 33 Level 3 13 | . . . . 24 Level 4 13 | . . . . 24 Level 5 . | . . . . . High Security . | . . . . . Max Security . | . . . . . Squads Dispatched 3 | . 1 1 1 . Investigation . | . . . . . Extermination . | . . . . . Reinforcement 3 | . 1 1 1 . Assault . | . . . . . Garrison . | . . . . . Intercept . | . . . . . Searches Triggered . | . . . . . Construction Impeded . | . . . . . Haulers Reinforced . | . . . . . Active Scanning Responses . | . . . . . Cargo Convoy Interrupts . | . . . . . Stealth | -11 -10 -9 -8 -8 --------- Run | Yrd Mat Mat Mat Gar Distress Signals 5 | . . 3 2 . Communications Jammed . | . . . . . Distress Signals . | . . . . . Times Spotted 73 | . 3 12 14 44 Peak Tracking Total 7 | . 3 5 5 7 Tactical Retreats 4 | . . 2 1 1 Traps | -11 -10 -9 -8 -8 ------- Run | Yrd Mat Mat Mat Gar Traps Triggered 2 | . . . . 2 Indirectly . | . . . . . Trap Hack Attempts . | . . . . . Triggered . | . . . . . Disarmed . | . . . . . Reprogrammed . | . . . . . Reused . | . . . . . Traps Extracted . | . . . . . Installed . | . . . . . Triggered . | . . . . . Machines | -11 -10 -9 -8 -8 ---------- Run | Yrd Mat Mat Mat Gar Machines Disabled 7 | . . . . 7 Max in Single Turn 2 | . . . . 2 Garrison Relay 4 | . . . . 4 Machines Repaired . | . . . . . Machines Dismantled . | . . . . . Machines Sabotaged . | . . . . . Overloaded Fab Kills . | . . . . . Hacking | -11 -10 -9 -8 -8 --------- Run | Yrd Mat Mat Mat Gar Machines Accessed 10 | . 2 3 3 2 Terminals 7 | . 2 2 1 2 Fabricators . | . . . . . Repair Stations . | . . . . . Recycling Units 2 | . . 1 1 . Scanalyzers . | . . . . . Garrison Access 1 | . . . 1 . Total Hacks 21 | . 8 5 4 4 Successful 7 | . 2 . 3 2 Failed 14 | . 6 5 1 2 Catastrophic 2 | . . 2 . . Database Lockouts . | . . . . . Manual 11 | . 7 4 . . Terminals 16 | . 8 2 2 4 Fabricators . | . . . . . Repair Stations . | . . . . . Recycling Units 4 | . . 3 1 . Scanalyzers . | . . . . . Garrison Access 1 | . . . 1 . Terminal Hacks 4 | . 1 . 1 2 Open Door 1 | . . . . 1 Emergency Access Points 1 | . . . . 1 Alert Level 1 | . . . 1 . Locate Traps 1 | . 1 . . . Fabricator Hacks . | . . . . . Repair Station Hacks . | . . . . . Recycling Unit Hacks 1 | . . . 1 . Report Inventory 1 | . . . 1 . Scanalyzer . | . . . . . Garrison Access Hacks 1 | . . . 1 . Unlock Access 1 | . . . 1 . Unauthorized Hacks 1 | . 1 . . . Terminals 1 | . 1 . . . Botnet 1 | . 1 . . . Fabricators . | . . . . . Repair Stations . | . . . . . Recycling Units . | . . . . . Scanalyzers . | . . . . . Garrison Access . | . . . . . Data Cores Recovered . | . . . . . Used . | . . . . . Hacking Detections 6 | . 2 3 1 . Full Trace Events . | . . . . . Feedback Events . | . . . . . Feedback Blocked . | . . . . . Robot Schematics Acquired . | . . . . . Robots Built . | . . . . . Authchips . | . . . . . Time . | . . . . . Total Robot Build Rating . | . . . . . Part Schematics Acquired . | . . . . . Parts Built . | . . . . . Authchips . | . . . . . Time . | . . . . . Total Part Build Rating . | . . . . . Parts Repaired . | . . . . . Time . | . . . . . Parts Recycled . | . . . . . Recycled Matter . | . . . . . Retrieved Matter . | . . . . . Retrieved Components . | . . . . . Parts Scanalyzed . | . . . . . Part Schematics Acquired . | . . . . . Parts Damaged . | . . . . . Bothacking | -11 -10 -9 -8 -8 ------------ Run | Yrd Mat Mat Mat Gar Used RIF Installer . | . . . . . Robots Hacked . | . . . . . Non-combat . | . . . . . Combat . | . . . . . Robot Hacks Applied . | . . . . . Relay Couplers Released 16 | . . . . 16 Machine Destruction 13 | . . . . 13 Programmers 3 | . . . . 3 Fabnet Peak Effective % . | . . . . . Robots Rewired 3 | . . . . 3 Allies Hacked . | . . . . . Hacks Repelled . | . . . . . Allies | -11 -10 -9 -8 -8 -------- Run | Yrd Mat Mat Mat Gar Total Allies 5 | . . . . 5 Largest Group 5 | . . . . 5 Highest-Rated Group 123 | . . . . 123 Highest-Rated Ally 31 | . . . . 31 Total Orders . | . . . . . Ally Attacks 26 | . . . . 26 Total Damage 734 | . . . . 734 Kills 6 | . . . . 6 Allies Corrupted . | . . . . . Allies Melted . | . . . . . Intel | -11 -10 -9 -8 -8 ------- Run | Yrd Mat Mat Mat Gar Robot Analysis Total . | . . . . . Derelict Logs Recovered . | . . . . . Drone Launches . | . . . . . Drone Recoveries . | . . . . . Exploration | -11 -10 -9 -8 -8 ------------- Run | Yrd Mat Mat Mat Gar Turns Passed 3275 | 108 230 562 567 1808 Spaces Moved 1645 | 76 219 270 226 854 Core 14 | 14 . . . . Treads . | . . . . . Legs 1062 | 5 . . 203 854 Wheels 569 | 57 219 270 23 . Hover . | . . . . . Flight . | . . . . . Fastest Speed 50 | 50 100 100 100 90 Average Speed 146 | 92 100 103 173 169 Slowest Speed 270 | 120 100 115 190 270 Overloaded Moves . | . . . . . Propulsion Burnouts . | . . . . . Robots Hopped . | . . . . . Cave-ins Triggered . | . . . . . Exploration Rate (%) 32 | 4 41 22 20 75 Regions Visited 4 Branch Regions . Pre-discovered Areas . | . . . . . Known Exits Taken 1 | . . . 1 . Unknown Exits Taken 3 | 1 1 1 . . Scrap Searched . | . . . . . Spaces Dug 3 | . . . 3 . Terrain Destroyed 43 | . . . 4 39 Melee 3 | . . . 3 . Projectile 1 | . . . 1 . AOE 39 | . . . . 39 Terrain Rammed . | . . . . . Walls Destroyed . | . . . . . Machines Disabled . | . . . . . Actions | -11 -10 -9 -8 -8 --------- Run | Yrd Mat Mat Mat Gar Total 2331 | 99 229 527 348 1128 Wait 351 | 5 1 229 33 83 Move 1641 | 75 218 269 225 854 Hop . | . . . . . Pick Up 54 | 6 3 7 14 24 Fast Attach 28 | 7 . 3 9 9 Attach 20 | . 1 . 5 14 Detach 8 | . . 1 4 3 Swap 25 | . 1 6 8 10 Drop 35 | . 4 1 18 12 Fire 118 | 6 1 11 28 72 Melee 4 | . . . 4 . Ram . | . . . . . Kick . | . . . . . Crush . | . . . . . Escape Stasis 5 | . . . . 5 Rewire 42 | . . . . 42 Trap . | . . . . . Miscellaneous . | . . . . . Route ------- -11/Scrapyard -10/Materials -9/Materials (discovered 2 exits: *Mat / [Sto]) -8/Materials -8/Garrison (discovered 4 exits: [*Mat x4]) History --------- Turn | Location | Event 15 | -11/Scrapyard | Discovered new exit (range 15) 109 | -11/Scrapyard | Entered Materials 302 | -10/Materials | Build established: Mutant 313 | -10/Materials | Discovered new exit (range 10) 339 | -10/Materials | Entered another Materials area 339 | -9/Materials | Evolved 2 slots: Utility x2 816 | -9/Materials | Discovered new exit (range 15) 857 | -9/Materials | Discovered new exit (range 13) 901 | -9/Materials | Entered another Materials area 901 | -8/Materials | Evolved 2 slots: Utility x2 1466 | -8/Materials | Identified exit to Garrison 1468 | -8/Materials | Entered Garrison 1492 | -8/Garrison | Lost 7 parts (1p3n1u2w) 1508 | -8/Garrison | Triggered checkpoint 1547 | -8/Garrison | Garrison Relay disabled 1678 | -8/Garrison | Destroyed 7 combat bots 1824 | -8/Garrison | Triggered checkpoint 1900 | -8/Garrison | Garrison Relay disabled 1904 | -8/Garrison | Triggered checkpoint 1905 | -8/Garrison | Core integrity fell below 50% 2022 | -8/Garrison | Discovered new exit (range 11) 2217 | -8/Garrison | Build established: Scavenger-Mutant 2332 | -8/Garrison | Discovered new exit (range 11) 2374 | -8/Garrison | Triggered checkpoint 2405 | -8/Garrison | Rescued a captive Derelict 2405 | -8/Garrison | Rescued a captive Derelict 2433 | -8/Garrison | Garrison Relay disabled 2532 | -8/Garrison | Triggered checkpoint 2552 | -8/Garrison | Discovered new exit (range 5) 2634 | -8/Garrison | Triggered checkpoint 2677 | -8/Garrison | Lost 3 allies 2734 | -8/Garrison | Discovered new exit (range 10) 2772 | -8/Garrison | Triggered checkpoint 2811 | -8/Garrison | Garrison Relay disabled 2827 | -8/Garrison | Lost 4 parts (1p1u2w) 3236 | -8/Garrison | Triggered checkpoint 3248 | -8/Garrison | Core integrity fell below 20% 3276 | -8/Garrison | Destroyed by G-47 Trooper with Particle Gun Last Messages --------------- 02817_ Dropped Relay Coupler [Swarmer]. 02817_ Acquired Relay Coupler [Swarmer]. 02820_ Dropped Relay Coupler [Hunter]. 02820_ Acquired Relay Coupler [Hunter]. 02824_ The unstable cave ceiling collapses. 02866_ Acquired 23 matter. 02985_ Acquired Lgt. Ion Engine. 03171_ Acquired Hvy. Assault Rifle. 03175_ Dropped Particle Gun. 03175_ Acquired Hvy. Assault Rifle. 03236_ Beams of light sweep through the air. An alarm sounds. 03236_ System Shield destroyed. 03243_ Reaction Control System destroyed. 03247_ Aluminum Leg destroyed. 03249_ Imp. Terrain Scanner destroyed. 03251_ Critical hit (Burn: +37). 03255_ Lgt. Ion Engine destroyed. 03257_ Hvy. Assault Rifle destroyed. 03268_ ALERT: Garrison interior compromised. 03275_ VSS Leg destroyed. Map ----- +----------------------------------------------------+ | ?????????????????????????????????????????????????? | | ?????????????????????????????????????????????????? | | ?????????????????????????????????????????????????? | | ?????????????????????????????????????????????????? | | ?????????????????????????????????????????????????? | | ???????????##?#??###?????????????????????????????? | | ????????#""" "&?? ""#???????????????????????????? | | ??#####?#&& &?" #???????????????????????????? | | ??# #??&& "" ?????????????????????????????? | | ??# < #?#"" """#???????????????????????????? | | ??# #?# ^^ #???????????????????????????? | | ??# #?#"" ""#???????#######?????????????? | | ??# #?#&& # " #???????#" ""#?????????????? | | ??# #?#&& #???######= ######?????????? | | ??# #?#"" """#???# ^ #?????????? | | ??# #?# #???# [ * #?????????? | | ??# #?#### ####???# ### %######?????????? | | ??# #??# # # #?????# #?# *[#??????????????? | | ??# ##### ######### #?#####??????????????? | | ??# #???????????????????+? | | ??# #????????????????????? | | ??# #????????????????????? | | ??####################### #????????????????????? | | ????????????????????????# #????????????????????? | | ????????????????????????# #????????????????????? | | ????????????????????????#@ #????????????????????? | | ????????????????????????# #????????????????####? | | ????????????????????????# #????????????????# #? | | ?????????????????####???# #????????????????# [#? | | ?????????????????# ???# #????????????????##"## | | ??????????????#### ####gg #?????????????????#[= | | ??????????????+ #?????????????????# =[ | | ??????????????+ ###???????????????#[ # | | ??????????????# ##+##### # #???????????????#*=# | | ??????????????????# #??## ! # #???????????????#= # | | ??????????????????# #??# = #???????????????# # | | ??????????????????# #??# #???????????????# + | | ??????????????????# ##### #######????#######=]# | | ??????????????????+ + ## # | | ??????????????????####### ###+##+##+### [ ## # | | ????????????????????????# *[ = | | ????????????????????????# [ | | ????????????????????????# ! [ = | | ????????????????????????############[= ## ##= = | | ?????????????????????????????????### ^^## ## [ | | ?????????????????????????????????# !=[ [ | | ?????????????????????????????????# | | ?????????????????????????????????# | | ??????????????############???????# | | ??????????????#""""""""""#???????### ## ## | +----------------------------------------------------+ Best States ------------- Heat Dissipation 31 Energy Generation 18 Energy Capacity 160 Matter Stores 300 Matter Capacity 300 Sight Range 16 Terrain Scan Range 16 Terrain Scan Density 85 ECM Strength 1 Armor Coverage 150 Evasion (%) 57 Targeting Accuracy 15 Salvage Targeting 4 Defensive Hacking 10 Authchip Count 3 Item Schematics ----------------- None Robot Schematics ------------------ None Fabricated ------------ Nothing Alien Tech Used ----------------- None Achievements -------------- None Challenges ------------ None Game ------ Seed BattleWarpReconfigurator Manual? 0 Play Time 00:32:10 Cumulative 162.1 hours Start 2024.08.11 @ 11:36:09 End 2024.08.11 @ 13:31:22 Sessions 3 Manual Loads 0 Difficulty Rogue Special Mode None Game No. 168 Rogue 168 Adventurer 0 Explorer 0 Win Type - Total 0 Types 0/0/0/0/0/0/0/0/0 Lore% 19 Gallery% 53 Achievement% 38 Wizard Run 0 Options --------- Layout 0 ASCII 0 Keyboard 1 Movement Vi Keybinds 0 Fullscreen 2 Font 24/Smallcaps Map View 76x50 Zoom Use 0% Tactical HUD 1 Map Filters NONE Filters NONE Steam 1 RUN: 0c29ad0f-afee-4f9f-9cf3-fab73b782e59